[Event "Titled Tuesday Blitz December 06 Late 2022"]
[White "Oro, Faustino"]
[Black "Quizon, Daniel"]
[WhiteFideId "20000197"]
[BlackFideId "5217911"]
[WhiteElo "1984"]
[BlackElo "2385"]
[Result "0-1"]
[Round "05"]
[TimeControl "180+1"]
[Date "2022.12.06"]
[WhiteClock "0:00:02"]
[BlackClock "0:00:10"]

1. e4 {[%clk 0:03:00]}  c5 {[%clk 0:02:58]} 2. Nf3 {[%clk 0:02:59]}  d6 {[%clk 0:02:58]} 3. d4 {[%clk 0:02:59]}  cxd4 {[%clk 0:02:59]} 4. Nxd4 {[%clk 0:03:00]}  Nf6 {[%clk 0:03:00]} 5. Nc3 {[%clk 0:03:01]}  a6 {[%clk 0:02:59]} 6. f3 {[%clk 0:02:56]}  e5 {[%clk 0:02:57]} 7. Nb3 {[%clk 0:02:56]}  Be6 {[%clk 0:02:58]} 8. Be3 {[%clk 0:02:55]}  Be7 {[%clk 0:02:58]} 9. Qd2 {[%clk 0:02:55]}  O-O {[%clk 0:02:59]} 10. O-O-O {[%clk 0:02:56]}  b5 {[%clk 0:02:59]} 11. g4 {[%clk 0:02:51]}  Nbd7 {[%clk 0:02:53]} 12. g5 {[%clk 0:02:48]}  Nh5 {[%clk 0:02:53]} 13. Ne2 {[%clk 0:02:42]}  Rc8 {[%clk 0:02:49]} 14. Kb1 {[%clk 0:02:40]}  Nb6 {[%clk 0:02:29]} 15. Ng3 {[%clk 0:02:12]}  Nf4 {[%clk 0:02:17]} 16. Bxf4 {[%clk 0:01:38]}  exf4 {[%clk 0:02:17]} 17. Qxf4 {[%clk 0:01:38]}  Bxg5 {[%clk 0:01:13]} 18. Qxd6 {[%clk 0:01:36]}  Na4 {[%clk 0:01:02]} 19. Be2 {[%clk 0:01:06]}  Bf6 {[%clk 0:00:39]} 20. c3 {[%clk 0:00:42]}  Qe8 {[%clk 0:00:21]} 21. e5 {[%clk 0:00:34]}  Bxb3 {[%clk 0:00:17]} 22. axb3 {[%clk 0:00:19]}  Bxe5 {[%clk 0:00:17]} 23. Qxa6 {[%clk 0:00:19]}  Nxb2 {[%clk 0:00:17]} 24. Bxb5 {[%clk 0:00:17]}  Nxd1 {[%clk 0:00:14]} 25. Bxe8 {[%clk 0:00:16]}  Nxc3+ {[%clk 0:00:15]} 26. Kc2 {[%clk 0:00:15]}  Nd5+ {[%clk 0:00:15]} 27. Kd2 {[%clk 0:00:14]}  Bf4+ {[%clk 0:00:15]} 28. Kd1 {[%clk 0:00:11]}  Rfxe8 {[%clk 0:00:13]} 29. Ne4 {[%clk 0:00:10]}  f5 {[%clk 0:00:13]} 30. Nd6 {[%clk 0:00:04]}  Nc3+ {[%clk 0:00:13]} 31. Kc2 {[%clk 0:00:04]}  Bxd6 {[%clk 0:00:13]} 32. Kb2 {[%clk 0:00:03]}  Be5 {[%clk 0:00:12]} 33. Re1 {[%clk 0:00:02]}  Ne2+ {[%clk 0:00:10]} 34. Ka3 {[%clk 0:00:02]}  Ra8 {[%clk 0:00:10]} 0-1


[Site "https://www.chess.com"]

[Event "Titled Tuesday Blitz December 06 Late 2022"]
[White "Petrovic, Aleksa"]
[Black "Rosen, Eric"]
[WhiteFideId "967629"]
[BlackFideId "2032562"]
[WhiteElo "2230"]
[BlackElo "2362"]
[Result "0-1"]
[Round "05"]
[TimeControl "180+1"]
[Date "2022.12.07"]
[WhiteClock "0:00:03"]
[BlackClock "0:00:03"]

1. d4 {[%clk 0:03:00]}  d5 {[%clk 0:02:58]} 2. c4 {[%clk 0:03:01]}  e6 {[%clk 0:02:59]} 3. Nf3 {[%clk 0:02:59]}  Nf6 {[%clk 0:02:59]} 4. Nc3 {[%clk 0:03:00]}  Nbd7 {[%clk 0:02:59]} 5. cxd5 {[%clk 0:02:59]}  exd5 {[%clk 0:02:59]} 6. Bg5 {[%clk 0:03:00]}  c6 {[%clk 0:03:00]} 7. e3 {[%clk 0:02:59]}  h6 {[%clk 0:03:00]} 8. Bh4 {[%clk 0:02:58]}  g5 {[%clk 0:03:01]} 9. Bg3 {[%clk 0:02:58]}  Nh5 {[%clk 0:03:02]} 10. Bd3 {[%clk 0:02:57]}  Nxg3 {[%clk 0:03:00]} 11. hxg3 {[%clk 0:02:58]}  Bg7 {[%clk 0:03:01]} 12. Bf5 {[%clk 0:02:58]}  Nb6 {[%clk 0:02:57]} 13. Qc2 {[%clk 0:02:57]}  Qe7 {[%clk 0:02:43]} 14. O-O-O {[%clk 0:02:56]}  Be6 {[%clk 0:02:41]} 15. Kb1 {[%clk 0:02:55]}  O-O-O {[%clk 0:02:40]} 16. g4 {[%clk 0:02:40]}  Kb8 {[%clk 0:02:40]} 17. Ne2 {[%clk 0:02:39]}  Nc4 {[%clk 0:02:38]} 18. Ng3 {[%clk 0:02:38]}  Qb4 {[%clk 0:02:32]} 19. Ka1 {[%clk 0:02:35]}  Rhe8 {[%clk 0:02:31]} 20. Nh5 {[%clk 0:02:31]}  Bf8 {[%clk 0:02:01]} 21. Nf6 {[%clk 0:02:28]}  Re7 {[%clk 0:02:02]} 22. Ng8 {[%clk 0:02:22]}  Bxf5 {[%clk 0:01:46]} 23. gxf5 {[%clk 0:02:23]}  Rc7 {[%clk 0:01:47]} 24. Nxh6 {[%clk 0:02:21]}  f6 {[%clk 0:01:44]} 25. Ng4 {[%clk 0:02:17]}  Be7 {[%clk 0:01:41]} 26. Rd3 {[%clk 0:02:15]}  Nd6 {[%clk 0:01:31]} 27. Rb3 {[%clk 0:02:13]}  Qa5 {[%clk 0:01:31]} 28. Rc1 {[%clk 0:02:02]}  Rh8 {[%clk 0:01:27]} 29. Rc3 {[%clk 0:01:59]}  Ne4 {[%clk 0:01:22]} 30. Rd3 {[%clk 0:01:54]}  Qb5 {[%clk 0:01:13]} 31. Nd2 {[%clk 0:01:50]}  Rh4 {[%clk 0:01:08]} 32. f3 {[%clk 0:01:34]}  Nd6 {[%clk 0:01:08]} 33. Nb1 {[%clk 0:01:22]}  Rc8 {[%clk 0:01:03]} 34. Nc3 {[%clk 0:01:21]}  Qc4 {[%clk 0:01:00]} 35. Rdd1 {[%clk 0:01:21]}  Rch8 {[%clk 0:00:50]} 36. b3 {[%clk 0:01:17]}  Qb4 {[%clk 0:00:48]} 37. Nxd5 {[%clk 0:01:17]}  cxd5 {[%clk 0:00:38]} 38. Qc7+ {[%clk 0:01:17]}  Ka8 {[%clk 0:00:39]} 39. Qxe7 {[%clk 0:01:17]}  a5 {[%clk 0:00:28]} 40. Nxf6 {[%clk 0:01:16]}  Rh2 {[%clk 0:00:24]} 41. Nxd5 {[%clk 0:01:04]}  Qa3 {[%clk 0:00:19]} 42. Nb6+ {[%clk 0:00:58]}  Kb8 {[%clk 0:00:17]} 43. Qc7+ {[%clk 0:00:56]}  Ka7 {[%clk 0:00:18]} 44. Qc5 {[%clk 0:00:47]}  Qxc5 {[%clk 0:00:16]} 45. dxc5 {[%clk 0:00:48]}  Nxf5 {[%clk 0:00:17]} 46. Rd7 {[%clk 0:00:48]}  Rxg2 {[%clk 0:00:12]} 47. Na4 {[%clk 0:00:28]}  Rhh2 {[%clk 0:00:02]} 48. Nc3 {[%clk 0:00:28]}  Nxe3 {[%clk 0:00:02]} 49. c6 {[%clk 0:00:17]}  Nc2+ {[%clk 0:00:02]} 50. Kb1 {[%clk 0:00:13]}  Na3+ {[%clk 0:00:03]} 51. Ka1 {[%clk 0:00:14]}  Nc2+ {[%clk 0:00:04]} 52. Kb1 {[%clk 0:00:14]}  Na3+ {[%clk 0:00:04]} 53. Ka1 {[%clk 0:00:15]}  Kb6 {[%clk 0:00:01]} 54. Na4+ {[%clk 0:00:05]}  Ka6 {[%clk 0:00:01]} 55. Nc5+ {[%clk 0:00:04]}  Kb5 {[%clk 0:00:02]} 56. Rxb7+ {[%clk 0:00:04]}  Kxc6 {[%clk 0:00:02]} 57. Rb8 {[%clk 0:00:03]}  Rxa2# {[%clk 0:00:03]} 0-1


[Site "https://www.chess.com"]

[Event "Titled Tuesday Blitz December 06 Late 2022"]
[White "Pham, Le Thao Nguyen"]
[Black "Saya, Ethan"]
[WhiteFideId "12401226"]
[BlackFideId "26095181"]
[WhiteElo "2282"]
[BlackElo "2178"]
[Result "0-1"]
[Round "05"]
[TimeControl "180+1"]
[Date "2022.12.07"]
[WhiteClock "0:01:01"]
[BlackClock "0:01:34"]

1. Nf3 {[%clk 0:03:00]}  Nf6 {[%clk 0:02:59]} 2. d4 {[%clk 0:03:00]}  e6 {[%clk 0:02:59]} 3. c4 {[%clk 0:03:00]}  b6 {[%clk 0:02:58]} 4. Bg5 {[%clk 0:02:59]}  Bb7 {[%clk 0:02:58]} 5. e3 {[%clk 0:02:59]}  Be7 {[%clk 0:02:58]} 6. Bd3 {[%clk 0:02:58]}  Ne4 {[%clk 0:02:58]} 7. Bxe7 {[%clk 0:02:57]}  Qxe7 {[%clk 0:02:58]} 8. O-O {[%clk 0:02:54]}  O-O {[%clk 0:02:58]} 9. Ne1 {[%clk 0:02:50]}  f5 {[%clk 0:02:57]} 10. f3 {[%clk 0:02:45]}  Nf6 {[%clk 0:02:56]} 11. Nc3 {[%clk 0:02:46]}  d6 {[%clk 0:02:54]} 12. Nc2 {[%clk 0:02:43]}  Nbd7 {[%clk 0:02:54]} 13. e4 {[%clk 0:02:41]}  fxe4 {[%clk 0:02:54]} 14. fxe4 {[%clk 0:02:41]}  e5 {[%clk 0:02:54]} 15. Nd5 {[%clk 0:02:38]}  Bxd5 {[%clk 0:02:52]} 16. cxd5 {[%clk 0:02:37]}  exd4 {[%clk 0:02:50]} 17. Qe2 {[%clk 0:02:28]}  Rae8 {[%clk 0:02:45]} 18. Rae1 {[%clk 0:02:26]}  Nc5 {[%clk 0:02:43]} 19. Bb5 {[%clk 0:02:21]}  Qxe4 {[%clk 0:02:32]} 20. Bxe8 {[%clk 0:02:16]}  Rxe8 {[%clk 0:02:32]} 21. Qxe4 {[%clk 0:02:15]}  Ncxe4 {[%clk 0:02:27]} 22. Nxd4 {[%clk 0:02:15]}  Nxd5 {[%clk 0:02:24]} 23. Nb5 {[%clk 0:01:53]}  a6 {[%clk 0:02:18]} 24. Rf5 {[%clk 0:01:53]}  axb5 {[%clk 0:02:13]} 25. Rxd5 {[%clk 0:01:52]}  c6 {[%clk 0:02:14]} 26. Rf5 {[%clk 0:01:45]}  d5 {[%clk 0:02:12]} 27. Ref1 {[%clk 0:01:39]}  Nd6 {[%clk 0:02:08]} 28. R5f2 {[%clk 0:01:37]}  b4 {[%clk 0:02:08]} 29. Rc1 {[%clk 0:01:36]}  c5 {[%clk 0:02:07]} 30. Kf1 {[%clk 0:01:29]}  Ra8 {[%clk 0:02:05]} 31. b3 {[%clk 0:01:28]}  Ne4 {[%clk 0:02:02]} 32. Rf5 {[%clk 0:01:25]}  d4 {[%clk 0:02:02]} 33. Rc2 {[%clk 0:01:24]}  d3 {[%clk 0:01:59]} 34. Rb2 {[%clk 0:01:24]}  Nc3 {[%clk 0:01:54]} 35. Rf3 {[%clk 0:01:18]}  Nxa2 {[%clk 0:01:42]} 36. Rxd3 {[%clk 0:01:17]}  Nc3 {[%clk 0:01:42]} 37. Rbd2 {[%clk 0:01:08]}  Ra1+ {[%clk 0:01:41]} 38. Kf2 {[%clk 0:01:08]}  Ne4+ {[%clk 0:01:41]} 39. Kf3 {[%clk 0:01:08]}  Nxd2+ {[%clk 0:01:39]} 40. Rxd2 {[%clk 0:01:09]}  Ra3 {[%clk 0:01:38]} 41. Rd7 {[%clk 0:01:03]}  Rxb3+ {[%clk 0:01:38]} 42. Ke4 {[%clk 0:01:04]}  Rb1 {[%clk 0:01:35]} 43. Rb7 {[%clk 0:01:02]}  b3 {[%clk 0:01:33]} 44. Rxb6 {[%clk 0:01:01]}  b2 {[%clk 0:01:34]} 0-1


[Site "https://www.chess.com"]

[Event "Titled Tuesday Blitz December 06 Late 2022"]
[White "Polster, Christian"]
[Black "Karas, Marek"]
[WhiteFideId "12965081"]
[BlackFideId "14928558"]
[WhiteElo "2195"]
[BlackElo "2247"]
[Result "0-1"]
[Round "05"]
[TimeControl "180+1"]
[Date "2022.12.07"]
[WhiteClock "0:00:20"]
[BlackClock "0:00:19"]

1. e4 {[%clk 0:02:56]}  g6 {[%clk 0:02:56]} 2. d4 {[%clk 0:02:55]}  Bg7 {[%clk 0:02:50]} 3. Nc3 {[%clk 0:02:55]}  a6 {[%clk 0:02:51]} 4. h4 {[%clk 0:02:54]}  h5 {[%clk 0:02:47]} 5. Bg5 {[%clk 0:02:51]}  b5 {[%clk 0:02:42]} 6. Qd2 {[%clk 0:02:51]}  Bb7 {[%clk 0:02:38]} 7. f3 {[%clk 0:02:49]}  d6 {[%clk 0:02:38]} 8. O-O-O {[%clk 0:02:48]}  Nd7 {[%clk 0:02:38]} 9. Kb1 {[%clk 0:02:47]}  Ngf6 {[%clk 0:02:24]} 10. Qe1 {[%clk 0:02:42]}  e5 {[%clk 0:02:18]} 11. Nge2 {[%clk 0:02:20]}  Qc8 {[%clk 0:01:57]} 12. dxe5 {[%clk 0:02:04]}  Nxe5 {[%clk 0:01:54]} 13. Nf4 {[%clk 0:02:02]}  O-O {[%clk 0:01:50]} 14. Ncd5 {[%clk 0:01:57]}  Nxd5 {[%clk 0:01:49]} 15. Nxd5 {[%clk 0:01:58]}  Kh8 {[%clk 0:01:43]} 16. g4 {[%clk 0:01:50]}  Nxf3 {[%clk 0:01:35]} 17. Qe3 {[%clk 0:01:33]}  Nxg5 {[%clk 0:01:32]} 18. hxg5 {[%clk 0:01:32]}  Bxd5 {[%clk 0:01:27]} 19. exd5 {[%clk 0:01:25]}  Qxg4 {[%clk 0:01:25]} 20. Be2 {[%clk 0:01:23]}  Qb4 {[%clk 0:00:53]} 21. c3 {[%clk 0:01:17]}  Qc5 {[%clk 0:00:42]} 22. Qh3 {[%clk 0:01:10]}  Rfe8 {[%clk 0:00:40]} 23. Bxh5 {[%clk 0:01:05]}  gxh5 {[%clk 0:00:34]} 24. Qxh5+ {[%clk 0:01:03]}  Kg8 {[%clk 0:00:34]} 25. g6 {[%clk 0:00:36]}  f6 {[%clk 0:00:30]} 26. Rdf1 {[%clk 0:00:24]}  Re7 {[%clk 0:00:04]} 27. Qh7+ {[%clk 0:00:16]}  Kf8 {[%clk 0:00:04]} 28. Rf3 {[%clk 0:00:10]}  Qxd5 {[%clk 0:00:03]} 29. Rhf1 {[%clk 0:00:09]}  Ke8 {[%clk 0:00:02]} 30. Qh3 {[%clk 0:00:05]}  Qe6 {[%clk 0:00:02]} 31. Qh7 {[%clk 0:00:03]}  Kd7 {[%clk 0:00:02]} 32. Kc2 {[%clk 0:00:03]}  Qe4+ {[%clk 0:00:02]} 33. Kb3 {[%clk 0:00:03]}  Rae8 {[%clk 0:00:03]} 34. a3 {[%clk 0:00:03]}  Qe6+ {[%clk 0:00:03]} 35. Kc2 {[%clk 0:00:03]}  Qe2+ {[%clk 0:00:04]} 36. Kc1 {[%clk 0:00:03]}  Qe6 {[%clk 0:00:03]} 37. Qh5 {[%clk 0:00:03]}  Qe5 {[%clk 0:00:03]} 38. Qh3+ {[%clk 0:00:03]}  Kd8 {[%clk 0:00:03]} 39. Rf5 {[%clk 0:00:03]}  Qe3+ {[%clk 0:00:03]} 40. Qxe3 {[%clk 0:00:04]}  Rxe3 {[%clk 0:00:02]} 41. Kd2 {[%clk 0:00:04]}  R3e5 {[%clk 0:00:02]} 42. R5f3 {[%clk 0:00:04]}  Re2+ {[%clk 0:00:02]} 43. Kd3 {[%clk 0:00:04]}  R2e5 {[%clk 0:00:01]} 44. Rh1 {[%clk 0:00:04]}  Kd7 {[%clk 0:00:02]} 45. Rh7 {[%clk 0:00:04]}  R8e7 {[%clk 0:00:03]} 46. Rfh3 {[%clk 0:00:04]}  Rd5+ {[%clk 0:00:03]} 47. Kc2 {[%clk 0:00:04]}  Rde5 {[%clk 0:00:04]} 48. Kb3 {[%clk 0:00:04]}  Rg5 {[%clk 0:00:04]} 49. R3h6 {[%clk 0:00:03]}  Bxh6 {[%clk 0:00:04]} 50. Rxh6 {[%clk 0:00:03]}  Rg7 {[%clk 0:00:03]} 51. Rh7 {[%clk 0:00:04]}  Rxg6 {[%clk 0:00:04]} 52. Rh5 {[%clk 0:00:04]}  Rf7 {[%clk 0:00:04]} 53. Rf5 {[%clk 0:00:04]}  Rgg7 {[%clk 0:00:05]} 54. Rf4 {[%clk 0:00:04]}  f5 {[%clk 0:00:05]} 55. Rf3 {[%clk 0:00:05]}  Rg8 {[%clk 0:00:05]} 56. Rf4 {[%clk 0:00:06]}  Rgf8 {[%clk 0:00:06]} 57. Rf3 {[%clk 0:00:06]}  Re7 {[%clk 0:00:07]} 58. Rf2 {[%clk 0:00:07]}  Ref7 {[%clk 0:00:07]} 59. Kc2 {[%clk 0:00:07]}  Rf6 {[%clk 0:00:08]} 60. Kd3 {[%clk 0:00:08]}  f4 {[%clk 0:00:09]} 61. Kd4 {[%clk 0:00:09]}  f3 {[%clk 0:00:10]} 62. Ke4 {[%clk 0:00:10]}  Rf4+ {[%clk 0:00:11]} 63. Ke3 {[%clk 0:00:10]}  R8f5 {[%clk 0:00:11]} 64. Kd3 {[%clk 0:00:11]}  Kc6 {[%clk 0:00:11]} 65. Ke3 {[%clk 0:00:11]}  Rf6 {[%clk 0:00:12]} 66. b3 {[%clk 0:00:12]}  R4f5 {[%clk 0:00:12]} 67. a4 {[%clk 0:00:10]}  Re5+ {[%clk 0:00:13]} 68. Kd4 {[%clk 0:00:10]}  Re2 {[%clk 0:00:14]} 69. Rf1 {[%clk 0:00:10]}  f2 {[%clk 0:00:14]} 70. axb5+ {[%clk 0:00:10]}  axb5 {[%clk 0:00:13]} 71. Kd3 {[%clk 0:00:11]}  Re1 {[%clk 0:00:14]} 72. Rxf2 {[%clk 0:00:12]}  Rxf2 {[%clk 0:00:14]} 73. b4 {[%clk 0:00:12]}  Rh1 {[%clk 0:00:13]} 74. c4 {[%clk 0:00:13]}  Rh3+ {[%clk 0:00:13]} 75. Ke4 {[%clk 0:00:14]}  Rh4+ {[%clk 0:00:13]} 76. Ke3 {[%clk 0:00:14]}  Rxc4 {[%clk 0:00:13]} 77. Kxf2 {[%clk 0:00:14]}  Rxb4 {[%clk 0:00:14]} 78. Ke3 {[%clk 0:00:14]}  Rc4 {[%clk 0:00:15]} 79. Kd3 {[%clk 0:00:15]}  d5 {[%clk 0:00:15]} 80. Kd2 {[%clk 0:00:16]}  b4 {[%clk 0:00:16]} 81. Ke2 {[%clk 0:00:17]}  b3 {[%clk 0:00:17]} 82. Ke3 {[%clk 0:00:18]}  b2 {[%clk 0:00:17]} 83. Kd3 {[%clk 0:00:19]}  b1=Q+ {[%clk 0:00:18]} 84. Kd2 {[%clk 0:00:20]}  Qb3 {[%clk 0:00:19]} 85. Ke2 {[%clk 0:00:21]}  Rc2+ {[%clk 0:00:18]} 86. Kd1 {[%clk 0:00:20]}  Qb1# {[%clk 0:00:19]} 0-1


[Site "https://www.chess.com"]

[Event "Titled Tuesday Blitz December 06 Late 2022"]
[White "Quesada Perez, Yuniesky"]
[Black "Xiong, Jeffery"]
[WhiteFideId "3504409"]
[BlackFideId "2047640"]
[WhiteElo "2600"]
[BlackElo "2726"]
[Result "0-1"]
[Round "05"]
[TimeControl "180+1"]
[Date "2022.12.06"]
[WhiteClock "0:00:01"]
[BlackClock "0:00:10"]

1. e4 {[%clk 0:03:00]}  e6 {[%clk 0:02:56]} 2. d4 {[%clk 0:03:00]}  d5 {[%clk 0:02:57]} 3. e5 {[%clk 0:03:00]}  c5 {[%clk 0:02:55]} 4. c3 {[%clk 0:03:00]}  Qb6 {[%clk 0:02:55]} 5. Nf3 {[%clk 0:03:00]}  Nc6 {[%clk 0:02:56]} 6. a3 {[%clk 0:02:59]}  Nh6 {[%clk 0:02:52]} 7. b4 {[%clk 0:02:59]}  cxd4 {[%clk 0:02:51]} 8. cxd4 {[%clk 0:03:00]}  Nf5 {[%clk 0:02:49]} 9. Be3 {[%clk 0:03:00]}  Bd7 {[%clk 0:02:41]} 10. Bd3 {[%clk 0:03:00]}  a5 {[%clk 0:02:29]} 11. b5 {[%clk 0:02:26]}  Nce7 {[%clk 0:02:08]} 12. Nc3 {[%clk 0:02:24]}  Nxe3 {[%clk 0:01:52]} 13. fxe3 {[%clk 0:02:25]}  Ng6 {[%clk 0:01:52]} 14. O-O {[%clk 0:02:20]}  Be7 {[%clk 0:01:53]} 15. a4 {[%clk 0:02:03]}  O-O {[%clk 0:01:50]} 16. Ne2 {[%clk 0:02:03]}  Be8 {[%clk 0:01:33]} 17. Nf4 {[%clk 0:01:31]}  Nxf4 {[%clk 0:01:32]} 18. exf4 {[%clk 0:01:31]}  f5 {[%clk 0:01:33]} 19. exf6 {[%clk 0:00:31]}  Bxf6 {[%clk 0:01:32]} 20. Qe2 {[%clk 0:00:18]}  Bh5 {[%clk 0:01:31]} 21. Kh1 {[%clk 0:00:16]}  Bxd4 {[%clk 0:01:28]} 22. Rae1 {[%clk 0:00:14]}  Rxf4 {[%clk 0:01:21]} 23. Qxe6+ {[%clk 0:00:14]}  Qxe6 {[%clk 0:01:22]} 24. Rxe6 {[%clk 0:00:14]}  Raf8 {[%clk 0:01:19]} 25. Rd6 {[%clk 0:00:14]}  Rxf3 {[%clk 0:00:50]} 26. gxf3 {[%clk 0:00:15]}  Bxf3+ {[%clk 0:00:50]} 27. Rxf3 {[%clk 0:00:15]}  Rxf3 {[%clk 0:00:51]} 28. Rd8+ {[%clk 0:00:15]}  Kf7 {[%clk 0:00:50]} 29. Bxh7 {[%clk 0:00:16]}  Ra3 {[%clk 0:00:37]} 30. Rxd5 {[%clk 0:00:15]}  Rxa4 {[%clk 0:00:37]} 31. Rd7+ {[%clk 0:00:15]}  Ke6 {[%clk 0:00:34]} 32. Rxb7 {[%clk 0:00:16]}  Ra1+ {[%clk 0:00:34]} 33. Kg2 {[%clk 0:00:16]}  a4 {[%clk 0:00:35]} 34. Bg8+ {[%clk 0:00:16]}  Kd6 {[%clk 0:00:36]} 35. Rb8 {[%clk 0:00:14]}  a3 {[%clk 0:00:34]} 36. Ra8 {[%clk 0:00:13]}  Kc5 {[%clk 0:00:33]} 37. Ra4 {[%clk 0:00:13]}  Bb2 {[%clk 0:00:31]} 38. Bc4 {[%clk 0:00:13]}  Rc1 {[%clk 0:00:30]} 39. Bd3 {[%clk 0:00:12]}  Rd1 {[%clk 0:00:27]} 40. Be2 {[%clk 0:00:09]}  Rd4 {[%clk 0:00:25]} 41. Ra6 {[%clk 0:00:07]}  Rd6 {[%clk 0:00:25]} 42. Ra8 {[%clk 0:00:07]}  Rd7 {[%clk 0:00:23]} 43. Ra6 {[%clk 0:00:06]}  Kb4 {[%clk 0:00:20]} 44. b6 {[%clk 0:00:06]}  Bd4 {[%clk 0:00:19]} 45. Bf3 {[%clk 0:00:05]}  Be5 {[%clk 0:00:18]} 46. b7 {[%clk 0:00:05]}  Rd2+ {[%clk 0:00:18]} 47. Kh3 {[%clk 0:00:05]}  a2 {[%clk 0:00:19]} 48. Bd5 {[%clk 0:00:05]}  Rxd5 {[%clk 0:00:16]} 49. Rxa2 {[%clk 0:00:05]}  Rb5 {[%clk 0:00:16]} 50. Rg2 {[%clk 0:00:04]}  Rxb7 {[%clk 0:00:15]} 51. Kg4 {[%clk 0:00:05]}  Rf7 {[%clk 0:00:13]} 52. Kg5 {[%clk 0:00:05]}  Rf6 {[%clk 0:00:12]} 53. h4 {[%clk 0:00:05]}  Bf4+ {[%clk 0:00:13]} 54. Kh5 {[%clk 0:00:03]}  Bh6 {[%clk 0:00:13]} 55. Re2 {[%clk 0:00:02]}  Kc5 {[%clk 0:00:13]} 56. Re4 {[%clk 0:00:02]}  Kd6 {[%clk 0:00:13]} 57. Re8 {[%clk 0:00:02]}  Re6 {[%clk 0:00:13]} 58. Rf8 {[%clk 0:00:02]}  Ke7 {[%clk 0:00:13]} 59. Rf3 {[%clk 0:00:01]}  Rf6 {[%clk 0:00:13]} 60. Rg3 {[%clk 0:00:01]}  Kf7 {[%clk 0:00:13]} 61. Rg2 {[%clk 0:00:01]}  Kg8 {[%clk 0:00:10]} 0-1


[Site "https://www.chess.com"]

[Event "Titled Tuesday Blitz December 06 Late 2022"]
[White "Rodriguez Santiago, Jaime"]
[Black "Bilan, Danila"]
[WhiteFideId "3100898"]
[BlackFideId "24161918"]
[WhiteElo "2025"]
[BlackElo "2182"]
[Result "1-0"]
[Round "05"]
[TimeControl "180+1"]
[Date "2022.12.07"]
[WhiteClock "0:00:38"]
[BlackClock "0:00:03"]

1. c4 {[%clk 0:03:00]}  c6 {[%clk 0:02:58]} 2. d4 {[%clk 0:02:58]}  d5 {[%clk 0:02:58]} 3. cxd5 {[%clk 0:02:58]}  cxd5 {[%clk 0:02:57]} 4. Bf4 {[%clk 0:02:58]}  Nf6 {[%clk 0:02:56]} 5. e3 {[%clk 0:02:59]}  Nc6 {[%clk 0:02:52]} 6. Nc3 {[%clk 0:02:58]}  Bf5 {[%clk 0:02:42]} 7. Qb3 {[%clk 0:02:57]}  Na5 {[%clk 0:02:38]} 8. Qa4+ {[%clk 0:02:56]}  Bd7 {[%clk 0:02:35]} 9. Qd1 {[%clk 0:02:49]}  Qb6 {[%clk 0:02:31]} 10. Rb1 {[%clk 0:02:32]}  e6 {[%clk 0:02:02]} 11. Bd3 {[%clk 0:02:17]}  Nc4 {[%clk 0:01:53]} 12. Qe2 {[%clk 0:02:03]}  Rc8 {[%clk 0:01:47]} 13. Nf3 {[%clk 0:01:49]}  Bb4 {[%clk 0:01:41]} 14. O-O {[%clk 0:01:46]}  O-O {[%clk 0:01:15]} 15. Rfc1 {[%clk 0:01:26]}  Qa5 {[%clk 0:00:59]} 16. a3 {[%clk 0:01:20]}  Be7 {[%clk 0:00:46]} 17. Ne5 {[%clk 0:01:17]}  Nxe5 {[%clk 0:00:44]} 18. Bxe5 {[%clk 0:01:14]}  a6 {[%clk 0:00:38]} 19. f4 {[%clk 0:00:48]}  Bc6 {[%clk 0:00:26]} 20. f5 {[%clk 0:00:46]}  Ne4 {[%clk 0:00:24]} 21. fxe6 {[%clk 0:00:44]}  fxe6 {[%clk 0:00:20]} 22. Bxe4 {[%clk 0:00:42]}  dxe4 {[%clk 0:00:16]} 23. Qg4 {[%clk 0:00:42]}  Bf6 {[%clk 0:00:08]} 24. Qxe6+ {[%clk 0:00:41]}  Kh8 {[%clk 0:00:05]} 25. Bxf6 {[%clk 0:00:42]}  gxf6 {[%clk 0:00:04]} 26. d5 {[%clk 0:00:42]}  Bb5 {[%clk 0:00:02]} 27. Nxb5 {[%clk 0:00:39]}  Qxb5 {[%clk 0:00:03]} 28. Rxc8 {[%clk 0:00:38]} 1-0


[Site "https://www.chess.com"]

[Event "Titled Tuesday Blitz December 06 Late 2022"]
[White "Romero Ruscalleda, Josep"]
[Black "Arbunic Castro, Giovanna"]
[WhiteFideId "2231859"]
[BlackFideId "3400549"]
[WhiteElo "2183"]
[BlackElo "1934"]
[Result "1-0"]
[Round "05"]
[TimeControl "180+1"]
[Date "2022.12.07"]
[WhiteClock "0:00:59"]
[BlackClock "0:00:07"]

1. e4 {[%clk 0:03:00]}  g6 {[%clk 0:02:54]} 2. d4 {[%clk 0:03:00]}  Bg7 {[%clk 0:02:54]} 3. Nc3 {[%clk 0:03:00]}  c5 {[%clk 0:02:54]} 4. Be3 {[%clk 0:02:59]}  Qa5 {[%clk 0:02:53]} 5. Nf3 {[%clk 0:02:55]}  Nf6 {[%clk 0:02:51]} 6. Bd3 {[%clk 0:02:54]}  Ng4 {[%clk 0:02:49]} 7. O-O {[%clk 0:02:49]}  Nxe3 {[%clk 0:02:30]} 8. fxe3 {[%clk 0:02:48]}  O-O {[%clk 0:02:29]} 9. Qe1 {[%clk 0:02:31]}  Nc6 {[%clk 0:02:24]} 10. Qh4 {[%clk 0:02:04]}  Bf6 {[%clk 0:01:53]} 11. Qh6 {[%clk 0:01:55]}  cxd4 {[%clk 0:01:47]} 12. exd4 {[%clk 0:01:50]}  Nxd4 {[%clk 0:01:28]} 13. Nd5 {[%clk 0:01:43]}  Bg7 {[%clk 0:01:25]} 14. Nxe7+ {[%clk 0:01:39]}  Kh8 {[%clk 0:01:24]} 15. Qh4 {[%clk 0:01:33]}  Nxf3+ {[%clk 0:00:40]} 16. Rxf3 {[%clk 0:01:32]}  Bxb2 {[%clk 0:00:39]} 17. Raf1 {[%clk 0:01:26]}  Qc5+ {[%clk 0:00:12]} 18. Kh1 {[%clk 0:01:24]}  f6 {[%clk 0:00:09]} 19. Nxg6+ {[%clk 0:01:21]}  Kg7 {[%clk 0:00:08]} 20. Nxf8 {[%clk 0:01:18]}  Kxf8 {[%clk 0:00:08]} 21. Qxh7 {[%clk 0:01:16]}  d6 {[%clk 0:00:07]} 22. Rg3 {[%clk 0:00:59]} 1-0


[Site "https://www.chess.com"]